bitfinex/quotes_BTCUSD_20250226
["timestamp","ask_amount","ask_price","bid_price","bid_amount"]
[1740595540337,1.02852061,85277.0,85276.0,0.05020579]
[1740595540680,0.93276499,85277.0,85276.0,0.05020579]
[1740595540880,0.64869103,85277.0,85276.0,0.05020579]
[1740595541066,0.64869103,85277.0,85276.0,0.52529048]
[1740595541268,0.64708538,85277.0,85276.0,0.52529048]
[1740595542290,0.1217949,85277.0,85276.0,0.86287953]
[1740595543129,0.07023698,85277.0,85276.0,0.86287953]
[1740595543286,0.07023698,85277.0,85276.0,0.5478]
[1740595543708,0.07023698,85277.0,85276.0,0.91337428]
[1740595544144,0.43359374,85282.0,85276.0,0.9133745]
[1740595544386,0.26775845,85282.0,85277.0,2.2e-07]
[1740595544567,0.0004235,85307.0,85278.0,0.31507975]
[1740595544772,0.232241,85286.0,85279.0,0.54780022]
[1740595544927,0.0004235,85307.0,85280.0,0.31507975]
[1740595545127,0.0004235,85307.0,85281.0,0.54780022]
[1740595545400,0.0004235,85307.0,85282.0,0.89872298]
[1740595545730,3.4e-07,85309.0,85283.0,0.89872298]
[1740595545939,8e-05,85415.0,85284.0,0.35092298]
[1740595546223,8e-05,85415.0,85285.0,0.89872298]
[1740595546425,0.25204,85328.0,85286.0,0.89872298]
[1740595546628,0.02979773,85328.0,85287.0,0.28584323]
[1740595546829,8e-05,85415.0,85288.0,0.03584323]
[1740595547032,8e-05,85415.0,85288.0,0.89872298]
[1740595547033,0.222242,85329.0,85288.0,0.89872298]
[1740595547235,0.000422,85368.0,85289.0,0.58364345]
[1740595547351,0.000422,85368.0,85290.0,0.03584323]
[1740595547555,0.000422,85368.0,85288.0,0.34617232]
[1740595547556,0.000422,85368.0,85291.0,0.89872298]
[1740595547768,0.000422,85368.0,85292.0,0.58364323]
[1740595547982,0.000422,85368.0,85293.0,0.5478]
[1740595548195,0.0075551,85362.0,85293.0,0.5478]
[1740595548587,0.0075551,85362.0,85292.0,0.5478]
[1740595548588,0.0530721,85362.0,85292.0,0.5478]
[1740595548812,0.0530721,85362.0,85293.0,0.31507953]
[1740595549075,0.0530721,85362.0,85294.0,0.03593707]
[1740595549246,0.0530721,85362.0,85295.0,0.89881682]
[1740595549461,0.5075551,85362.0,85296.0,0.03593707]
[1740595549647,0.5075551,85362.0,85297.0,0.86287953]
[1740595549848,0.00641926,85361.0,85297.0,0.86287953]
[1740595550286,0.00641926,85361.0,85298.0,0.58380461]
[1740595550460,0.5075551,85362.0,85299.0,0.89888414]
[1740595550660,0.5075551,85362.0,85300.0,0.58380461]
[1740595550877,0.5075551,85362.0,85301.0,0.03600439]
[1740595551066,0.5075551,85362.0,85302.0,0.03600439]
[1740595551247,0.5075551,85362.0,85303.0,0.03600439]
[1740595551428,0.5075551,85362.0,85304.0,0.89888414]
[1740595551637,0.5075551,85362.0,85305.0,0.58380461]
[1740595551835,0.5075551,85362.0,85306.0,0.89888414]
[1740595552086,0.5075551,85362.0,85307.0,0.58380461]
[1740595552292,0.5075551,85362.0,85308.0,0.89888414]
[1740595552490,0.5075551,85362.0,85309.0,0.54780022]
[1740595552691,0.5075551,85362.0,85310.0,0.89888414]
[1740595552894,0.5075551,85362.0,85311.0,0.54780022]
[1740595553110,1.507976,85362.0,85312.0,0.03600439]
[1740595553305,1.507976,85362.0,85313.0,0.89888414]
[1740595553466,1.507976,85362.0,85314.0,0.03600439]
[1740595553657,1.507976,85362.0,85315.0,0.27620439]
[1740595553921,1.507976,85362.0,85316.0,0.03600439]
[1740595554127,1.507976,85362.0,85317.0,0.03600439]
[1740595554432,1.507976,85362.0,85318.0,0.03600439]
[1740595554640,1.50839461,85362.0,85319.0,0.03600439]
[1740595554934,1.50339461,85362.0,85320.0,0.89888414]
[1740595555167,1.50339461,85362.0,85321.0,0.03600439]
[1740595555396,1.50339461,85362.0,85322.0,0.03600439]
[1740595555603,1.50339461,85362.0,85323.0,0.58380461]
[1740595555810,1.50339461,85362.0,85324.0,0.03600439]
[1740595555992,1.50029012,85362.0,85325.0,0.89888414]
[1740595556384,1.50083912,85362.0,85326.0,0.58380461]
[1740595556611,1.50083912,85362.0,85327.0,0.89888414]
[1740595556765,1.50083912,85362.0,85328.0,0.58380439]
[1740595556985,1.50083912,85362.0,85329.0,0.03600439]
[1740595557171,1.50083912,85362.0,85330.0,0.03600439]
[1740595557371,1.50083912,85362.0,85331.0,0.58380439]
[1740595557576,0.0252,85361.0,85332.0,0.5478]
[1740595557780,0.0252,85361.0,85333.0,0.5478]
[1740595558072,0.02,85359.0,85294.0,0.5478]
[1740595558300,0.1214,85360.0,85295.0,0.5478]
[1740595558471,0.0252,85358.0,85294.0,0.5478]
[1740595558677,0.02524,85357.0,85295.0,0.03606592]
[1740595558901,0.02524,85357.0,85296.0,0.03606665]
[1740595559127,0.02524,85357.0,85297.0,0.5478]
[1740595559543,0.02,85353.0,85297.0,0.5478]
[1740595559747,0.0776,85340.0,85278.0,0.5478]
[1740595560071,0.0776,85340.0,85272.0,0.5478]
[1740595560352,0.0186901,85340.0,85293.0,0.5478]
[1740595561069,0.045,85352.0,85294.0,0.5478]
[1740595561279,0.0479,85379.0,85295.0,0.35118198]
[1740595561479,0.0479,85379.0,85296.0,0.58390267]
[1740595561689,0.02,85427.0,85297.0,0.8989822]
[1740595561886,0.19360688,85481.0,85298.0,0.9578822]
[1740595561887,0.0456,85402.0,85298.0,0.9578822]
[1740595562061,0.5,85356.0,85299.0,0.8989822]
[1740595562268,0.5,85356.0,85300.0,1.1391822]
[1740595562467,0.5,85356.0,85301.0,0.8989822]
[1740595562669,0.5,85356.0,85302.0,0.8989822]
[1740595562847,0.02508,85355.0,85303.0,0.03610245]
[1740595563074,0.02508,85355.0,85304.0,0.03610245]
[1740595563287,0.5,85356.0,85305.0,0.8989822]
[1740595563486,0.5,85356.0,85306.0,0.89898198]
[1740595563686,0.5,85356.0,85301.0,2.2e-07]
[1740595563687,0.5,85356.0,85307.0,0.89898198]
[1740595563893,0.02,85358.0,85307.0,0.86287953]
[1740595564243,0.0817,85361.0,85308.0,0.86287953]
[1740595564407,0.78828846,85362.0,85309.0,0.86287975]
[1740595564574,0.74080308,85362.0,85310.0,0.89904479]
[1740595564773,0.74080308,85362.0,85311.0,0.89904479]
[1740595564972,0.74080308,85362.0,85312.0,0.89904479]
[1740595565183,0.74080308,85362.0,85313.0,0.89904479]
[1740595565423,0.74080308,85362.0,85314.0,0.89904479]
[1740595565582,0.74080308,85362.0,85315.0,0.89904479]
[1740595565784,0.74080308,85362.0,85316.0,0.89904479]
[1740595566059,0.74080308,85362.0,85317.0,0.03616504]
[1740595566188,0.74080308,85362.0,85318.0,0.03616504]
[1740595566391,0.74080308,85362.0,85319.0,0.89904479]
[1740595566628,0.74080308,85362.0,85320.0,0.03616504]
[1740595566817,0.74080308,85362.0,85319.0,0.86287975]
[1740595567023,0.74080308,85362.0,85320.0,0.03617362]
[1740595567285,0.74080308,85362.0,85321.0,0.03617362]
[1740595567494,0.74080308,85362.0,85322.0,0.03617362]
[1740595567702,0.74080308,85362.0,85323.0,0.03617362]
[1740595567930,0.74080308,85362.0,85319.0,0.86287975]
[1740595568136,0.74080308,85362.0,85320.0,0.03619708]
[1740595568347,0.74080308,85362.0,85321.0,0.89407683]
[1740595568550,0.74080308,85362.0,85322.0,0.89407683]
[1740595568768,0.74080308,85362.0,85323.0,1.02007683]
[1740595568972,0.74080308,85362.0,85324.0,0.89407683]
[1740595569219,0.74080308,85362.0,85325.0,0.03119708]
[1740595569418,0.74080308,85362.0,85326.0,0.89407683]
[1740595569634,0.74080308,85362.0,85327.0,0.03119708]
[1740595570024,0.74080308,85362.0,85328.0,0.03624071]
[1740595570168,0.74080308,85362.0,85329.0,0.03624071]
[1740595570532,0.74080308,85362.0,85330.0,0.03624071]
[1740595570707,0.74080308,85362.0,85331.0,0.03624071]
[1740595570908,0.74080308,85362.0,85332.0,0.03624071]
[1740595571119,0.74080308,85362.0,85333.0,0.89912024]
[1740595571276,0.74080308,85362.0,85333.0,0.86287953]
[1740595571476,0.02,85348.0,85325.0,0.007]
[1740595571683,0.02,85347.0,85325.0,0.007]
[1740595571936,0.02,85333.0,85325.0,0.007]
[1740595572151,0.02,85327.0,85325.0,0.007]
[1740595572343,0.02504,85346.0,85295.0,0.86287953]
[1740595572540,0.0809,85361.0,85296.0,0.86287975]
[1740595572751,1.78898447,85362.0,85325.0,0.007]
[1740595572983,1.78898447,85362.0,85326.0,0.35141467]
[1740595573162,1.80940308,85362.0,85327.0,0.58413514]
[1740595573296,0.02,85350.0,85328.0,0.5478]
[1740595573503,1.78940308,85362.0,85329.0,0.5478]
[1740595573743,1.74080308,85362.0,85330.0,0.35143706]
[1740595573957,1.74080308,85362.0,85331.0,0.03635753]
[1740595574173,1.74080308,85362.0,85332.0,0.03635753]
[1740595574550,1.74080308,85362.0,85333.0,0.03635753]
[1740595574752,1.74080308,85362.0,85299.0,2.2e-07]
[1740595574753,1.74080308,85362.0,85334.0,0.89923706]
[1740595574955,1.74080308,85362.0,85335.0,0.58415753]
[1740595575232,1.74080308,85362.0,85336.0,0.03635753]
[1740595575431,1.74080308,85362.0,85337.0,0.94643728]
[1740595575662,0.5,85359.0,85338.0,0.89923728]
[1740595576009,0.5,85359.0,85339.0,0.03635753]
[1740595576171,0.4528,85359.0,85340.0,0.03635753]
[1740595576378,0.4528,85359.0,85341.0,0.03635753]
[1740595576572,0.32490938,85359.0,85342.0,0.89923728]
[1740595576831,1.59165243,85362.0,85343.0,0.69477417]
[1740595577037,1.23873686,85362.0,85344.0,0.69477417]
[1740595577254,1.20384592,85362.0,85345.0,0.03635753]
[1740595577458,1.17732266,85362.0,85346.0,0.03635753]
[1740595577673,1.17732266,85362.0,85347.0,0.03635753]
[1740595577880,1.17732266,85362.0,85348.0,0.03635753]
[1740595578081,1.17732266,85362.0,85347.0,0.65841664]
[1740595578082,1.16808045,85362.0,85349.0,0.03635753]
[1740595578286,1.16808045,85362.0,85350.0,0.03635753]
[1740595578506,0.99544978,85362.0,85351.0,0.35143728]
[1740595578718,0.84130359,85362.0,85352.0,0.03635775]
[1740595578919,0.77581465,85362.0,85353.0,2.2e-07]
[1740595579137,0.5,85377.0,85354.0,0.35143728]
[1740595579138,0.46746925,85377.0,85354.0,0.35143728]
[1740595579354,0.0775,85441.0,85355.0,0.03635753]
[1740595579577,0.03253,85392.0,85356.0,0.69477417]
[1740595579782,0.02,85409.0,85357.0,0.37969464]
[1740595579993,0.079,85392.0,85358.0,0.69477395]
[1740595580190,0.079,85419.0,85359.0,0.03635753]
[1740595580399,0.079,85419.0,85358.0,0.65841664]
[1740595580400,0.079,85419.0,85360.0,0.03635753]
[1740595580812,0.079,85419.0,85361.0,0.03635753]
[1740595581109,0.02486595,85419.0,85362.0,0.03635753]
[1740595581318,0.02486595,85419.0,85363.0,0.03635753]
[1740595581452,0.0494,85427.0,85364.0,0.03635753]
[1740595581654,0.0494,85427.0,85365.0,0.03635753]
[1740595581874,0.0494,85427.0,85366.0,0.03635753]
[1740595582095,0.0494,85427.0,85360.0,0.007]
[1740595582096,0.0004216,85448.0,85367.0,0.69477417]
[1740595582297,0.01990148,85436.0,85391.0,0.006]
[1740595582500,0.00904503,85442.0,85392.0,0.65841642]
[1740595582701,0.0004216,85448.0,85393.0,0.69475509]
[1740595582908,0.00904503,85437.0,85394.0,0.26775282]
[1740595583108,0.00904503,85433.0,85394.0,0.23141437]
[1740595583387,0.00904503,85426.0,85394.0,0.23141437]
[1740595583558,0.00904503,85421.0,85394.0,0.23153936]
[1740595583725,0.0004216,85448.0,85395.0,1.63851437]
[1740595583929,0.0004216,85448.0,85396.0,1.44343847]
[1740595584133,0.00904503,85434.0,85396.0,1.4071]
[1740595584355,0.00904503,85425.0,85397.0,0.23141437]
[1740595584599,0.00904503,85396.0,85394.0,0.00012499]
[1740595584742,0.0004216,85448.0,85352.0,0.23141437]
[1740595584743,0.00904503,85369.0,85352.0,0.23141437]
[1740595584949,0.0762,85391.0,85323.0,0.5478]
[1740595584950,0.00904503,85358.0,85324.0,0.23141437]
[1740595585150,0.00904503,85352.0,85324.0,0.23141437]
[1740595585352,0.00904503,85357.0,85325.0,0.77921437]
[1740595585598,0.0483,85367.0,85325.0,0.77921437]
[1740595585600,0.00904503,85355.0,85326.0,0.5478]
[1740595585801,0.00404503,85351.0,85326.0,0.5478]
[1740595586003,0.00404503,85338.0,85326.0,0.54821861]
[1740595586204,0.00404503,85338.0,85327.0,0.5478]
[1740595586450,0.0756,85339.0,85327.0,0.5478]
[1740595586651,0.00404503,85336.0,85328.0,0.5478]
[1740595586856,0.00404503,85327.0,85326.0,0.00041861]
[1740595587210,0.00404503,85327.0,85326.0,0.00741861]
[1740595587617,0.05204503,85327.0,85294.0,0.5478]
[1740595587820,0.05204503,85327.0,85303.0,0.00096671]
[1740595587821,0.00404503,85304.0,85303.0,0.00096671]
[1740595588051,0.0756,85339.0,85303.0,0.78018108]
[1740595588245,0.0455,85350.0,85304.0,1.63851437]
[1740595588447,0.07825006,85399.0,85322.0,0.01894994]
[1740595588688,0.00105006,85398.0,85326.0,0.0008414]
[1740595588844,0.00105006,85392.0,85327.0,0.27646566]
[1740595589047,1.72269294,85326.0,85323.0,1.63851437]
[1740595589251,1.72269294,85326.0,85324.0,1.12704116]
[1740595589252,0.93362828,85326.0,85324.0,1.12704116]
[1740595589468,0.93362828,85326.0,85325.0,0.58412679]
[1740595589662,0.92722828,85326.0,85325.0,1.4071]
[1740595590065,0.92722828,85326.0,85325.0,0.77921437]
[1740595590229,0.8021354,85326.0,85325.0,1.69379441]
[1740595590405,0.59719645,85326.0,85325.0,1.69379441]
[1740595590604,0.95009483,85326.0,85325.0,1.69379441]
[1740595591012,0.95009483,85326.0,85325.0,1.68184447]
[1740595591588,0.95009483,85326.0,85325.0,1.67484447]
[1740595591792,0.95009483,85326.0,85325.0,1.68184447]
[1740595591989,0.49659124,85326.0,85325.0,1.71666771]
[1740595592188,0.49659124,85326.0,85325.0,1.69071777]
[1740595592413,0.498985,85326.0,85325.0,1.69071777]
[1740595592767,0.5,85326.0,85325.0,1.65438767]
[1740595593088,0.5,85326.0,85325.0,1.69071509]
[1740595593509,0.5,85326.0,85325.0,1.69771509]
[1740595593933,0.49488038,85326.0,85325.0,0.81554179]
[1740595594166,0.49488038,85326.0,85325.0,0.78621437]
[1740595594423,0.49999938,85326.0,85325.0,0.77921437]
[1740595594816,0.49999938,85326.0,85325.0,0.78621437]
[1740595595017,0.49999938,85326.0,85325.0,0.007]
[1740595595221,0.49999938,85326.0,85304.0,0.77921437]
[1740595595370,0.49999938,85326.0,85325.0,0.007]
[1740595595763,0.50104944,85326.0,85325.0,0.007]
[1740595595966,0.57754944,85326.0,85325.0,0.007]
[1740595596738,0.57649938,85326.0,85325.0,0.007]
[1740595596937,0.57754944,85326.0,85325.0,0.007]
[1740595597289,0.57754944,85326.0,85325.0,0.77921437]
[1740595597469,0.57754944,85326.0,85294.0,0.5478]
[1740595597669,0.55104608,85326.0,85304.0,0.5478]
[1740595597877,0.55104608,85326.0,85325.0,0.007]
[1740595598070,0.57649908,85326.0,85265.0,0.5478]
[1740595598294,0.57649908,85326.0,85325.0,0.007]
[1740595598497,0.57649908,85326.0,85304.0,0.07489142]
[1740595598498,0.53969165,85326.0,85317.0,0.10481504]
[1740595598875,0.02,85322.0,85304.0,0.07489142]
[1740595599103,0.0478,85307.0,85304.0,0.007]
[1740595599323,0.0811,85306.0,85267.0,0.02851369]
[1740595599510,0.0811,85306.0,85294.0,0.01016583]
[1740595599983,0.0811,85306.0,85243.0,0.5478]
[1740595600201,0.0806,85303.0,85225.0,0.5478]
[1740595600377,0.0806,85303.0,85239.0,0.548643]
[1740595600697,0.02,85297.0,85264.0,0.04630292]
[1740595600905,0.10416,85296.0,85264.0,0.04630292]
[1740595601128,0.60416,85296.0,85264.0,0.04630292]
[1740595601528,0.175922,85265.0,85264.0,0.04630292]
[1740595601678,0.081,85264.0,85263.0,0.05712513]
[1740595602082,0.081,85264.0,85263.0,0.05012513]
[1740595602928,0.081,85264.0,85263.0,0.09431968]
[1740595603133,0.175934,85259.0,85239.0,0.000843]
[1740595603333,0.222271,85241.0,85239.0,0.000843]
[1740595603493,0.222271,85241.0,85240.0,0.00096818]
[1740595603957,0.175971,85241.0,85225.0,0.5478]
[1740595604273,0.05815888,85225.0,85224.0,0.00126035]
[1740595605452,0.23350645,85226.0,85224.0,0.00126035]
[1740595605773,0.001,85225.0,85224.0,0.00526035]
[1740595606195,0.05919567,85225.0,85224.0,0.00526035]
[1740595606379,0.60649567,85225.0,85224.0,0.00526035]
[1740595606700,0.176019,85218.0,85176.0,0.0129485]
[1740595606928,0.176019,85218.0,85217.0,0.00096841]
[1740595607136,0.176041,85207.0,85176.0,0.0129485]
[1740595607335,0.176041,85207.0,85206.0,0.00096847]
[1740595607740,0.14655167,85207.0,85206.0,0.00096847]
[1740595608390,0.14655167,85207.0,85206.0,0.08038406]
[1740595608552,0.14755167,85207.0,85206.0,0.08738406]
[1740595608932,0.001,85207.0,85206.0,0.31879843]
[1740595609139,0.234673,85225.0,85217.0,0.02]
[1740595609343,0.734688,85220.0,85208.0,0.02]
[1740595609556,0.176041,85207.0,85206.0,0.00796847]
[1740595609757,0.176041,85207.0,85206.0,0.55576847]
[1740595610271,0.176041,85207.0,85206.0,0.54876847]
[1740595610474,0.176041,85207.0,85206.0,0.55576847]
[1740595610475,0.177041,85207.0,85206.0,0.55576847]
[1740595610652,0.177041,85207.0,85206.0,0.00796847]
[1740595611031,0.176041,85207.0,85206.0,0.00096847]
[1740595611219,0.177041,85207.0,85206.0,0.00796847]
[1740595611620,0.677041,85207.0,85206.0,0.00096847]
[1740595611811,0.678041,85207.0,85206.0,0.00796847]
[1740595612042,0.677041,85207.0,85206.0,0.00096847]
[1740595612574,0.677041,85207.0,85206.0,0.54876847]
[1740595613002,0.677041,85207.0,85206.0,0.00096847]
[1740595613415,0.677041,85207.0,85206.0,0.00796847]
[1740595613750,0.676041,85207.0,85206.0,0.00096847]
[1740595613957,0.5,85207.0,85206.0,0.00096847]
[1740595614166,0.689381,85207.0,85206.0,0.00196847]
[1740595614357,0.176074,85191.0,85190.0,0.1036301]
[1740595614566,0.19909,85197.0,85190.0,0.10375538]
[1740595614722,0.19909,85197.0,85126.0,0.2404]
[1740595614723,0.176275,85094.0,85093.0,0.8593]
[1740595614937,0.46995,85116.0,85092.0,0.8593]
[1740595615153,0.140611,85096.0,85095.0,0.02]
[1740595615349,0.407268,85103.0,85102.0,0.02]
[1740595615555,0.411249,85107.0,85106.0,0.02]
[1740595615822,0.469815,85140.0,85116.0,0.02]
[1740595615968,0.176225,85118.0,85117.0,0.5478]
[1740595616173,0.176267,85098.0,85097.0,0.02]
[1740595616374,0.235019,85100.0,85099.0,0.04]
[1740595616570,0.36999492,85100.0,85099.0,0.02]
[1740595616845,0.36999492,85100.0,85099.0,0.5678]
[1740595617046,0.86999492,85100.0,85099.0,0.5678]
[1740595617168,0.8701201,85100.0,85099.0,0.5678]
[1740595617364,0.8701201,85100.0,85099.0,0.5478]
[1740595617997,0.8701201,85100.0,85099.0,0.001]
[1740595618813,0.9155201,85100.0,85099.0,0.001]
[1740595619188,0.97434218,85100.0,85099.0,0.001]
[1740595619635,0.23493532,85091.0,85069.0,8e-05]
[1740595620470,0.176325,85070.0,85069.0,8e-05]
[1740595621060,0.23483337,85070.0,85069.0,8e-05]
[1740595621519,0.05855768,85070.0,85069.0,8e-05]
[1740595621733,0.05868277,85070.0,85027.0,0.2372896]
[1740595621927,0.17641,85029.0,85028.0,0.5478]
[1740595622137,0.17641,85029.0,85027.0,0.3273]
[1740595622343,0.176418,85025.0,85024.0,0.5478]
[1740595622967,0.176418,85025.0,85006.0,0.5478]
[1740595623172,0.13732316,85025.0,85024.0,0.8751]
[1740595623370,0.13732316,85025.0,85024.0,0.8651]
[1740595623581,0.000125,85025.0,85024.0,0.8851]
[1740595623783,0.000125,85025.0,85024.0,0.8651]
[1740595623784,0.176543,85025.0,85024.0,0.8651]
[1740595623985,0.13842898,85025.0,85024.0,0.8921]
[1740595624188,0.14060302,85029.0,85028.0,0.02]
[1740595624408,0.25478982,85090.0,85032.0,0.02]
[1740595624602,0.17618982,85090.0,85045.0,0.02]
[1740595624808,0.67618982,85090.0,85061.0,0.02]
[1740595625013,0.61746028,85090.0,85072.0,0.02]
[1740595625217,0.176286,85089.0,85088.0,0.02]
[1740595625423,0.176286,85089.0,85088.0,1.2444]
[1740595625632,0.176286,85089.0,85088.0,0.3851]
[1740595625833,0.235085,85076.0,85074.0,0.5478]
[1740595626048,0.176339,85063.0,85062.0,0.5478]
[1740595626252,0.176339,85063.0,85062.0,0.5678]
[1740595626405,0.176339,85063.0,85062.0,0.5478]
[1740595626607,0.176339,85063.0,85061.0,0.00875976]
[1740595627651,0.176464,85063.0,85061.0,0.00875976]
[1740595627866,0.176362,85052.0,85051.0,0.5478]
[1740595628290,0.676362,85052.0,85051.0,0.5478]
[1740595628492,0.4128934,85052.0,85051.0,0.56780005]
[1740595628641,0.35744665,85052.0,85051.0,0.56780005]
[1740595629042,0.007125,85063.0,85062.0,0.02]
[1740595629445,0.235048,85089.0,85079.0,0.02]
[1740595629646,0.2358668,85100.0,85051.0,0.44957524]
[1740595629647,0.0008488,85100.0,85080.0,0.24076]
[1740595629852,0.0008488,85100.0,85081.0,0.58365775]
[1740595630030,0.0008488,85100.0,85082.0,0.03585775]
[1740595630234,0.176298,85083.0,85082.0,0.03585775]
[1740595630434,0.176298,85083.0,85082.0,0.8751]
[1740595630641,0.176298,85083.0,85082.0,0.88886911]
[1740595631105,0.176298,85083.0,85082.0,0.90311036]
[1740595631455,0.007,85090.0,85082.0,1.29064395]
[1740595631658,0.007,85090.0,85083.0,0.97128226]
[1740595631863,0.5,85101.0,85084.0,0.03594867]
[1740595632094,0.07848245,85161.0,85085.0,0.03594867]
[1740595632306,0.176288,85088.0,85086.0,1.29858226]
[1740595632513,0.07897313,85162.0,85087.0,0.58195623]
[1740595632757,0.05878168,85152.0,85088.0,0.03594867]
[1740595632904,0.05848245,85161.0,85089.0,0.03594867]
[1740595633109,0.05897313,85162.0,85090.0,0.03594867]
[1740595633318,0.02,85168.0,85091.0,0.03594867]
[1740595633492,0.176259,85102.0,85092.0,0.03594867]
[1740595633869,1.17426,85160.0,85093.0,1.31966982]
[1740595634012,0.00012497,85102.0,85094.0,0.03594867]
[1740595634214,0.176271,85096.0,85095.0,1.29678982]
[1740595634420,0.00012497,85102.0,85095.0,1.29678982]
[1740595634627,0.02,85223.0,85095.0,1.29678982]
[1740595634628,0.05850058,85159.0,85096.0,0.96948982]
[1740595634832,0.89268206,85160.0,85097.0,1.29678982]
[1740595634833,0.176189,85136.0,85097.0,1.29678982]
[1740595635033,0.176189,85136.0,85094.0,0.01376911]
[1740595635034,0.000125,85160.0,85098.0,1.59678982]
[1740595635233,0.000125,85160.0,85100.0,0.3]
[1740595635469,0.000125,85160.0,85103.0,0.235009]
[1740595635640,0.000125,85160.0,85142.0,0.3]
[1740595635855,0.000125,85160.0,85143.0,1.29678982]
[1740595636047,0.176165,85148.0,85144.0,0.03594867]
[1740595636407,0.176167,85146.0,85145.0,0.93193623]
[1740595636612,0.176167,85146.0,85145.0,0.90925623]
[1740595636823,0.1753041,85146.0,85145.0,0.87330756]
[1740595636996,0.176172,85144.0,85143.0,0.0264557]
[1740595638178,0.176172,85144.0,85143.0,0.0254557]
[1740595638388,0.176172,85144.0,85143.0,0.00548149]
[1740595639064,0.176172,85144.0,85143.0,0.00648149]
[1740595639609,0.176172,85144.0,85143.0,0.00548149]
[1740595639807,0.176172,85144.0,85143.0,0.00648149]
[1740595639955,0.176172,85144.0,85143.0,0.00548149]
[1740595640344,0.234933,85131.0,85117.0,0.34364552]
[1740595640706,0.176223,85119.0,85118.0,0.58217332]
[1740595640842,0.104903,85119.0,85118.0,0.90947332]
[1740595641043,0.176223,85119.0,85118.0,0.90947332]
[1740595641249,0.0458,85178.0,85143.0,0.001]
[1740595641448,0.0458,85178.0,85144.0,0.90947332]
[1740595641681,0.0458,85178.0,85144.0,0.87330756]
[1740595641682,0.14051,85145.0,85144.0,0.87330756]
[1740595641884,0.176167,85146.0,85144.0,0.90945605]
[1740595642211,0.05850048,85185.0,85145.0,0.27670849]
[1740595642418,0.05850048,85185.0,85146.0,0.87330756]
[1740595642620,0.140503,85148.0,85147.0,0.01254849]
[1740595642825,0.0236,85148.0,85147.0,0.88585605]
[1740595642968,0.19988797,85148.0,85147.0,0.88585605]
[1740595643170,0.19988797,85148.0,85147.0,0.33984849]
[1740595643380,0.19988797,85148.0,85147.0,0.01386517]
[1740595643581,0.19988797,85148.0,85130.0,0.3273]
[1740595643582,0.0236,85119.0,85094.0,0.12850816]
[1740595643786,0.00012497,85148.0,85094.0,0.12850816]
[1740595643787,0.199873,85095.0,85094.0,0.12850816]
[1740595643971,0.199873,85095.0,85094.0,0.71248479]
[1740595645105,0.199873,85095.0,85094.0,0.71290187]
[1740595645273,0.199873,85095.0,85094.0,0.71390187]
[1740595645474,0.199873,85095.0,85094.0,0.71290187]
[1740595645720,0.234998,85107.0,85094.0,0.71290187]
[1740595645721,0.0236,85153.0,85094.0,1.10043546]
[1740595645942,0.0679,85161.0,85095.0,1.10001838]
[1740595645943,0.0236,85104.0,85095.0,1.10001838]
[1740595646213,0.0479,85161.0,85095.0,1.10001838]
[1740595646214,0.199871,85096.0,85095.0,0.12850816]
[1740595646416,0.199871,85096.0,85095.0,0.16472338]
[1740595646598,0.199873,85095.0,85094.0,0.00041708]
[1740595647085,0.219873,85095.0,85094.0,0.00041708]
[1740595647319,0.199873,85095.0,85094.0,0.00041708]
[1740595647477,0.206873,85095.0,85094.0,0.00141708]
[1740595648241,0.0236,85081.0,85068.0,0.02216]
[1740595648454,0.0236,85078.0,85069.0,0.16475969]
[1740595648661,0.0236,85071.0,85070.0,0.03625153]
[1740595649321,0.93367427,85094.0,85070.0,0.03625153]
[1740595649521,0.93367427,85094.0,85071.0,0.16475969]
[1740595649718,0.93367427,85094.0,85072.0,0.33625153]
[1740595649923,0.93367427,85094.0,85074.0,0.3]
[1740595650142,0.93367427,85094.0,85075.0,0.03625153]
[1740595650388,0.93367427,85094.0,85076.0,0.03625153]
[1740595650522,0.93367427,85094.0,85091.0,0.25]
[1740595650735,0.93367427,85094.0,85092.0,1.12213328]
[1740595650927,0.93367427,85094.0,85093.0,0.03625153]
[1740595651135,0.93367427,85094.0,85093.0,0.71255969]
[1740595651545,1.11694927,85094.0,85093.0,0.71255969]
[1740595652226,1.10994927,85094.0,85093.0,0.03625153]
[1740595652397,0.176283,85090.0,85089.0,0.2406]
[1740595652631,0.176283,85090.0,85089.0,0.27686086]
[1740595652781,1.16871027,85094.0,85089.0,0.95316902]
[1740595652782,0.93367427,85094.0,85089.0,0.95316902]
[1740595652981,0.93367427,85094.0,85070.0,0.38753359]
[1740595652982,0.176323,85071.0,85070.0,0.38753359]
[1740595653160,0.176327,85069.0,85064.0,0.25]
[1740595653396,0.94067427,85094.0,85068.0,0.03638512]
[1740595653564,0.94067427,85094.0,85069.0,0.71256831]
[1740595653765,0.94067427,85094.0,85070.0,0.03626015]
[1740595653969,0.94067427,85094.0,85071.0,0.03626015]
[1740595654229,0.176318,85074.0,85072.0,0.03626015]
[1740595654440,0.176318,85074.0,85073.0,0.71256831]
[1740595654983,0.176317,85074.0,85073.0,0.71256831]
[1740595655207,0.352478,85112.0,85073.0,0.74398821]
[1740595655416,0.01164363,85122.0,85074.0,0.58406015]
[1740595655601,0.469924,85121.0,85075.0,0.03626015]
[1740595655862,1.93367427,85094.0,85076.0,0.71256831]
[1740595656049,1.94067427,85094.0,85077.0,0.03626015]
[1740595656266,1.94067427,85094.0,85078.0,1.1001019]
[1740595656433,1.71946593,85094.0,85079.0,0.03626015]
[1740595656752,1.71946593,85094.0,85093.0,0.25]
[1740595656908,1.71946593,85094.0,85093.0,0.96256831]
[1740595657315,1.71246593,85094.0,85093.0,0.96256831]
[1740595657499,1.71246593,85094.0,85093.0,0.74398821]
[1740595657700,1.71946593,85094.0,85093.0,0.61548005]
[1740595657919,1.71246593,85094.0,85093.0,0.5792199]
[1740595658130,1.71246593,85094.0,85093.0,0.74411462]
[1740595658334,1.68353593,85094.0,85093.0,1.10904821]
[1740595658531,1.68353593,85094.0,85093.0,1.10804821]
[1740595658903,1.69053593,85094.0,85093.0,1.10904821]
[1740595659108,1.69053593,85094.0,85093.0,0.17371462]
[1740595659310,1.67653593,85094.0,85093.0,0.72051462]
[1740595660123,1.64999386,85094.0,85093.0,0.74579227]
[1740595660325,1.64999386,85094.0,85093.0,0.73797237]
[1740595660532,1.65699386,85094.0,85093.0,0.73797237]
[1740595660845,3.67879084,85094.0,85093.0,0.73797237]
[1740595661084,0.0236,85072.0,85071.0,0.5478]
[1740595661280,0.0236,85072.0,85071.0,0.91157162]